bitfinex-derivatives/quotes_SOLF0:USTF0_20241011
["timestamp","ask_amount","ask_price","bid_price","bid_amount"]
[1728641065902,3.5128,142.43,142.39,9.0335]
[1728641067508,3.5128,142.43,142.39,3.5135]
[1728641067813,0.12518,142.44,142.38,3.5138]
[1728641068416,3.5132,142.42,142.38,3.5138]
[1728641069317,3.5132,142.42,142.39,3.5137]
[1728641069514,3.5128,142.43,142.37,5.64502]
[1728641070117,0.12518,142.44,142.39,3.5135]
[1728641070308,3.5131,142.42,142.39,3.5135]
[1728641071015,3.513,142.42,142.38,3.5138]
[1728641071207,0.12518,142.44,142.38,3.5138]
[1728641071918,3.5129,142.43,142.38,3.5138]
[1728641072112,0.12518,142.44,142.38,3.5138]
[1728641072519,3.5129,142.43,142.38,3.5138]
[1728641072719,0.12518,142.44,142.38,3.5138]
[1728641073416,13.11169733,142.43,142.37,0.12502]
[1728641073721,10.40825474,142.42,142.37,0.12502]
[1728641074222,3.514,142.39,142.37,0.12502]
[1728641074623,10.40825474,142.42,142.37,0.12502]
[1728641074823,3.5138,142.39,142.37,0.12502]
[1728641076229,3.5135,142.4,142.37,3.63902]
[1728641076521,6.8661,142.42,142.37,3.63902]
[1728641077022,3.5135,142.4,142.37,3.63902]
[1728641079618,3.5133,142.41,142.38,3.5139]
[1728641079926,6.8661,142.42,142.37,0.12502]
[1728641080115,3.5132,142.41,142.38,3.5139]
[1728641082120,3.5135,142.4,142.37,3.63912]
[1728641082720,3.5134,142.41,142.38,3.5139]
[1728641082922,6.8661,142.42,142.37,0.12502]
[1728641084434,3.5135,142.4,142.37,3.63912]
[1728641087728,10.44363676,142.42,142.37,0.12502]
[1728641088316,3.5136,142.4,142.37,0.12502]
[1728641088524,11.0736,142.4,142.37,0.12502]
[1728641089032,3.5137,142.39,142.37,0.12502]
[1728641091827,3.514,142.38,142.37,0.12502]
[1728641092227,3.56328485,142.41,142.37,0.12502]
[1728641092427,6.8661,142.42,142.37,0.12502]
[1728641092428,11.0737,142.4,142.37,0.12502]
[1728641093331,3.5137,142.39,142.37,0.12502]
[1728641096134,3.5136,142.4,142.37,0.12502]
[1728641096426,7.56,142.41,142.37,0.12502]
[1728641096622,3.5136,142.4,142.37,0.12502]
[1728641096821,7.56,142.41,142.37,3.63902]
[1728641097545,7.56,142.4,142.37,0.12502]
[1728641098235,3.5133,142.41,142.38,3.5138]
[1728641098431,7.56,142.41,142.37,0.12502]
[1728641099331,3.5136,142.4,142.37,3.63912]
[1728641100332,7.56,142.4,142.37,0.12502]
[1728641101031,3.514,142.38,142.37,0.12502]
[1728641101230,11.074,142.38,142.37,0.12502]
[1728641103236,55.20309894,142.47,142.37,0.12502]
[1728641103237,55.20309894,142.47,142.37,7.68502]
[1728641103433,6.7836,142.51,142.37,0.12502]
[1728641103737,7.56,142.45,142.4,7.56]
[1728641103937,7.56,142.45,142.4,13.0]
[1728641104142,3.49190891,142.48,142.4,13.0]
[1728641104340,7.56,142.46,142.4,13.0]
[1728641105536,11.0721,142.46,142.43,3.5127]
[1728641105741,5.56502,142.49,142.43,3.5127]
[1728641105742,7.56,142.47,142.43,3.5127]
[1728641106151,11.0719,142.47,142.43,3.5127]
[1728641108044,7.56,142.47,142.43,3.5127]
[1728641108342,11.072,142.46,142.43,3.5127]
[1728641108541,7.56,142.46,142.43,3.5127]
[1728641110445,5.56502,142.49,142.43,3.5127]
[1728641110645,7.56,142.47,142.43,3.5127]
[1728641112649,3.5115,142.48,142.43,3.5127]
[1728641112850,7.56,142.47,142.43,3.5127]
[1728641113043,7.56,142.46,142.43,3.5127]
[1728641113542,7.56,142.46,142.41,7.56]
[1728641113748,7.56,142.46,142.41,13.12]
[1728641113947,7.56,142.46,142.41,5.56]
[1728641114141,7.56,142.46,142.42,3.5129]
[1728641114338,7.56,142.46,142.41,5.56]
[1728641114543,7.56,142.45,142.4,16.6334]
[1728641114841,11.0723,142.45,142.4,7.56]
[1728641115040,3.5123,142.45,142.41,7.56]
[1728641115245,7.56,142.46,142.4,7.56]
[1728641115446,3.5128,142.43,142.4,7.56]
[1728641115845,3.63788,142.44,142.4,7.56]
[1728641116147,0.12518,142.44,142.4,7.56]
[1728641116342,3.63768,142.44,142.4,7.56]
[1728641116546,0.12518,142.44,142.4,7.56]
[1728641116751,0.12518,142.44,142.41,3.5131]
[1728641118047,3.63768,142.44,142.41,3.5131]
[1728641119551,0.12518,142.44,142.4,7.56]
[1728641119946,0.12518,142.44,142.38,1.4227]
[1728641120150,3.5129,142.43,142.4,11.0733]
[1728641120550,0.12518,142.44,142.4,11.0733]
[1728641120849,0.12518,142.44,142.4,7.56]
[1728641121051,3.63778,142.44,142.41,3.5132]
[1728641122148,3.63778,142.44,142.41,11.0732]
[1728641124145,0.12518,142.44,142.42,3.5128]
[1728641124848,0.12518,142.44,142.41,7.56]
[1728641125163,0.12518,142.44,142.43,11.0727]
[1728641125751,0.12502,142.49,142.46,3.5118]
[1728641126051,0.12502,142.49,142.46,11.0718]
[1728641126249,3.63632,142.49,142.46,11.0718]
[1728641128159,0.12502,142.49,142.47,3.5117]
[1728641128852,3.63632,142.49,142.46,3.5119]
[1728641129055,0.12502,142.49,142.45,7.56]
[1728641129454,3.63632,142.49,142.46,3.5118]
[1728641130859,0.12502,142.49,142.46,7.56]
[1728641131767,0.12502,142.49,142.47,3.5116]
[1728641133160,3.63632,142.49,142.47,3.5116]
[1728641135262,0.12502,142.49,142.47,11.0716]
[1728641136459,0.12502,142.55,142.48,7.56]
[1728641136665,0.12502,142.55,142.53,7.56]
[1728641136868,7.68502,142.55,142.52,7.56]
[1728641137259,3.5102,142.54,142.51,7.56]
[1728641137763,7.56,142.54,142.48,5.56]
[1728641137963,0.12502,142.55,142.5,7.56]
[1728641138266,3.5103,142.53,142.5,11.0709]
[1728641138466,7.68502,142.55,142.5,7.56]
[1728641138665,0.12502,142.55,142.5,7.56]
[1728641138858,3.63502,142.55,142.5,7.56]
[1728641139062,0.12502,142.55,142.5,7.56]
[1728641139366,3.5102,142.54,142.5,7.56]
[1728641140070,3.5102,142.54,142.51,3.5105]
[1728641141168,3.5102,142.54,142.51,11.0705]
[1728641141667,3.5107,142.52,142.48,3.5113]
[1728641141865,3.5107,142.52,142.49,7.56]
[1728641142368,3.5107,142.52,142.5,7.56]
[1728641144469,3.5107,142.52,142.49,11.0711]
[1728641144671,3.5107,142.52,142.51,7.56]
[1728641144876,3.63502,142.55,142.52,3.5105]
[1728641145064,0.12502,142.55,142.51,7.56]
[1728641145963,0.12502,142.55,142.49,4.0672]
[1728641145964,3.5102,142.54,142.52,7.56]
[1728641146669,3.5102,142.54,142.52,11.0705]
[1728641147067,0.12502,142.55,142.53,7.56]
[1728641147373,0.12502,142.55,142.53,3.5102]
[1728641147677,0.12502,142.55,142.54,7.56]
[1728641147863,0.12502,142.55,142.54,11.07]
[1728641148667,0.12502,142.55,142.54,3.51]
[1728641148968,0.12502,142.55,142.54,11.07]
[1728641152866,0.12502,142.55,142.53,3.5101]
[1728641153066,0.12502,142.55,142.54,7.56]
[1728641154474,0.12502,142.55,142.54,11.07]
[1728641156573,3.5089,142.59,142.54,7.56]
[1728641156772,0.12502,142.61,142.57,11.0692]
[1728641157269,0.12502,142.61,142.57,7.56]
[1728641157470,0.12502,142.61,142.57,11.0691]
[1728641157670,0.12502,142.61,142.57,13.16]
[1728641157879,0.12502,142.61,142.57,5.6]
[1728641158176,0.12502,142.61,142.58,7.56]
[1728641158877,0.12502,142.61,142.58,11.069]
[1728641159278,0.12502,142.61,142.58,7.56]
[1728641159671,0.12502,142.61,142.57,16.6692]
[1728641160465,7.68502,142.61,142.57,9.1092]
[1728641160666,11.0686,142.6,142.56,3.5095]
[1728641160882,7.56,142.6,142.56,9.1095]
[1728641161175,0.12502,142.61,142.56,13.16]
[1728641161471,0.12502,142.61,142.55,1.4351]
[1728641161472,7.56,142.6,142.55,1.4351]
[1728641161677,7.56,142.6,142.55,13.16]
[1728641163378,7.56,142.6,142.57,3.5093]
[1728641164382,3.63342,142.61,142.57,3.5093]
[1728641164582,7.56,142.6,142.57,3.5093]
[1728641165170,0.12502,142.61,142.58,11.069]
[1728641165371,0.12502,142.61,142.59,13.16]
[1728641165583,0.12502,142.61,142.6,5.6]
[1728641166279,0.12502,142.61,142.6,16.6685]
[1728641166480,0.12502,142.61,142.6,9.1085]
[1728641166983,0.12502,142.61,142.6,3.5085]
[1728641167283,0.12502,142.61,142.59,5.6]
[1728641168476,0.12502,142.61,142.6,3.5085]
[1728641169290,0.12502,142.61,142.59,5.6]
[1728641169678,0.12502,142.61,142.57,7.56]
[1728641169878,0.12502,142.61,142.58,5.6]
[1728641171274,7.68502,142.61,142.58,9.1089]
[1728641171480,7.68502,142.61,142.56,1.371]
[1728641171681,3.5086,142.6,142.57,9.1091]
[1728641171876,7.68502,142.61,142.57,9.1091]
[1728641172080,7.56,142.6,142.54,1.3974]
[1728641172285,11.0692,142.58,142.55,5.6]
[1728641172485,7.56,142.6,142.55,13.16]
[1728641173091,3.5088,142.59,142.56,3.5094]
[1728641173294,7.56,142.6,142.55,13.16]
[1728641173492,7.56,142.6,142.54,7.1974]
[1728641173684,7.56,142.6,142.54,5.8]
[1728641173685,3.46806409,142.59,142.54,5.8]
[1728641173994,7.56,142.6,142.54,13.36]
[1728641174186,7.56,142.6,142.55,3.5096]
[1728641175189,3.5087,142.6,142.55,3.5096]
[1728641175391,5.92502,142.61,142.57,3.5091]
[1728641175586,13.48502,142.61,142.55,7.56]
[1728641175788,3.5088,142.59,142.55,7.56]
[1728641176092,11.0688,142.59,142.55,7.56]
[1728641176892,7.56,142.59,142.54,5.8]
[1728641177094,3.5092,142.58,142.54,13.36]
[1728641177292,7.56,142.59,142.5,6.15562903]
[1728641177489,7.56,142.54,142.51,5.8]
[1728641177692,7.56,142.58,142.53,7.56]
[1728641179097,4.1035,142.6,142.55,7.56]
[1728641179299,7.56,142.59,142.54,7.56]
[1728641179502,11.069,142.59,142.56,3.5095]
[1728641179691,7.56,142.59,142.54,7.56]
[1728641179998,11.069,142.59,142.55,3.5096]
[1728641180292,7.56,142.59,142.51,5.8]
[1728641180495,3.5101,142.54,142.51,3.5106]
[1728641180691,7.56,142.56,142.52,7.56]
[1728641180891,7.56,142.57,142.52,7.56]
[1728641181092,3.5097,142.56,142.52,7.56]
[1728641181996,7.56,142.57,142.53,3.5101]
[1728641182201,11.0694,142.57,142.52,7.56]
[1728641182897,11.0694,142.57,142.54,3.5099]
[1728641183391,3.5102,142.54,142.51,3.5106]
[1728641183597,7.56,142.56,142.53,7.56]
[1728641183898,7.56,142.58,142.53,7.56]
[1728641184391,11.0691,142.58,142.54,3.5099]
[1728641185098,3.5091,142.58,142.53,7.56]
[1728641185296,11.0691,142.58,142.53,7.56]
[1728641185998,11.0691,142.58,142.54,3.5099]
[1728641186201,3.5093,142.57,142.54,3.5099]
[1728641186596,7.56,142.57,142.53,11.0702]
[1728641186791,3.5097,142.56,142.53,3.5102]
[1728641186996,7.56,142.57,142.52,5.8]
[1728641187193,7.56,142.57,142.52,9.3104]
[1728641187400,7.56,142.55,142.37,10.66772]
[1728641187595,7.56,142.55,142.51,7.56]
[1728641187794,7.56,142.55,142.52,3.5104]
[1728641187994,11.0698,142.55,142.52,3.5104]
[1728641188501,7.56,142.55,142.53,3.5103]
[1728641188998,7.56,142.55,142.51,7.56]
[1728641189202,7.56,142.55,142.5,13.36]
[1728641189804,3.5102,142.54,142.51,3.5106]
[1728641190003,7.56,142.55,142.5,13.36]
[1728641190405,11.0699,142.55,142.52,3.5105]
[1728641190703,7.56,142.55,142.5,13.36]
[1728641190899,3.5096,142.56,142.51,11.0707]
[1728641191098,7.56,142.56,142.51,7.56]
[1728641191493,3.5092,142.58,142.52,3.5105]
[1728641191691,7.56,142.57,142.51,7.56]
[1728641192105,3.5097,142.56,142.51,7.56]
[1728641193105,11.0694,142.57,142.51,7.56]
[1728641194410,7.56,142.55,142.51,7.56]
[1728641194713,7.56,142.55,142.52,5.8]
[1728641195208,7.56,142.55,142.5,7.56]
[1728641195409,7.56,142.54,142.51,5.8]
[1728641196310,7.56,142.55,142.51,5.8]
[1728641196608,7.56,142.56,142.51,13.36]
[1728641197107,11.0696,142.56,142.53,3.5101]
[1728641197709,4.1035,142.6,142.53,7.56]
[1728641197903,7.56,142.57,142.51,13.36]
[1728641198610,3.5097,142.56,142.53,3.5101]
[1728641199199,7.56,142.57,142.51,5.8]
[1728641199413,7.56,142.57,142.52,7.56]
[1728641199612,7.56,142.56,142.51,5.8]
[1728641199815,3.5098,142.55,142.52,3.5104]
[1728641200115,7.56,142.56,142.46,89.93338192]
[1728641200315,11.0702,142.54,142.51,3.5107]
[1728641200715,7.56,142.54,142.5,5.8]
[1728641201122,7.56,142.53,142.5,5.8]
[1728641201509,7.56,142.53,142.51,3.5106]
[1728641202622,7.56,142.53,142.49,9.03842]
[1728641202823,11.0705,142.53,142.5,8.72798024]
[1728641203117,11.0705,142.53,142.5,3.5109]
[1728641203315,3.5105,142.53,142.5,3.5109]
[1728641203516,11.0699,142.55,142.52,3.5103]
[1728641203708,7.56,142.55,142.5,7.56]
[1728641204212,11.07,142.54,142.49,7.27842]
[1728641204409,11.07,142.54,142.5,11.17688352]
[1728641204721,3.5103,142.53,142.51,5.22257061]
[1728641204921,3.5103,142.53,142.5,3.5108]
[1728641205126,3.5103,142.53,142.51,5.22308092]
[1728641205320,3.5103,142.53,142.5,3.5108]
[1728641205627,7.56,142.54,142.51,8.73752241]
[1728641205815,11.0701,142.54,142.51,3.5107]
[1728641208920,3.51368589,142.58,142.52,7.56]
[1728641209126,7.56,142.56,142.49,7.25842]
[1728641209427,3.5099,142.55,142.52,3.5104]
[1728641209628,11.0699,142.55,142.52,3.5104]
[1728641210319,3.5099,142.55,142.52,3.5104]
[1728641212328,3.5099,142.55,142.53,5.23505948]
[1728641212625,3.5099,142.55,142.52,3.5104]
[1728641212830,3.5096,142.56,142.53,16.30511082]
[1728641213021,3.5096,142.56,142.53,11.07]
[1728641213221,3.5096,142.56,142.54,5.23692878]
[1728641213416,3.5096,142.56,142.53,11.07]
[1728641213626,3.5096,142.56,142.54,5.23675547]
[1728641213833,3.5096,142.56,142.53,11.07]
[1728641214026,11.0696,142.56,142.54,5.23665185]
[1728641214228,11.0696,142.56,142.53,3.51]
[1728641214423,11.0696,142.56,142.54,5.23787921]
[1728641214624,11.0696,142.56,142.53,3.51]
[1728641214823,11.0696,142.56,142.54,5.23817892]
[1728641215027,11.0696,142.56,142.53,3.51]
[1728641215225,11.0696,142.56,142.54,5.2394972]
[1728641215522,11.0696,142.56,142.53,3.51]
[1728641215726,11.0696,142.56,142.54,5.23958261]
[1728641215925,11.0696,142.56,142.53,3.51]
[1728641216123,11.0696,142.56,142.54,5.23958261]
[1728641216323,11.0696,142.56,142.55,5.23958261]
[1728641216526,11.0696,142.56,142.53,3.51]
[1728641216735,11.0696,142.56,142.55,5.24224476]
[1728641217027,11.0695,142.56,142.55,5.24224476]
[1728641217223,3.5095,142.56,142.55,5.24224476]
[1728641217424,11.0695,142.56,142.55,5.24224476]
[1728641217628,3.5099,142.55,142.52,3.5105]
[1728641217822,7.56,142.56,142.53,11.22405345]
[1728641218029,7.56,142.54,142.49,9.03842]
[1728641218227,7.56,142.54,142.5,11.22445156]
[1728641218530,7.56,142.54,142.51,11.22445156]
[1728641218743,7.56,142.54,142.52,11.22445156]
[1728641218931,7.56,142.56,142.53,11.22445156]
[1728641219132,3.5092,142.58,142.54,16.31458868]
[1728641219321,13.34,142.59,142.54,11.0698]
[1728641219727,7.56,142.58,142.54,3.5098]
[1728641219928,3.5094,142.57,142.54,3.5098]
[1728641220331,7.56,142.58,142.53,7.56]
[1728641220537,11.0692,142.58,142.55,3.5098]
[1728641220828,7.56,142.58,142.55,3.5098]
[1728641221336,11.0691,142.58,142.55,3.5098]
[1728641223435,3.5093,142.57,142.54,3.5099]
[1728641224033,7.56,142.58,142.53,3.5102]
[1728641224034,3.5096,142.56,142.53,3.5102]
[1728641224233,3.5096,142.56,142.52,7.56]
[1728641224537,3.5094,142.57,142.54,8.75468212]
[1728641224840,7.56,142.58,142.55,5.24478212]
[1728641225033,7.56,142.58,142.54,3.5099]
[1728641225229,3.5095,142.57,142.55,5.24487288]
[1728641225429,3.5095,142.57,142.54,3.5099]
[1728641225638,3.5095,142.57,142.55,5.24397102]
[1728641225839,3.5095,142.57,142.54,3.5099]
[1728641226141,3.5095,142.57,142.55,5.24391717]
[1728641226336,3.5095,142.57,142.54,3.5099]
[1728641226537,3.5095,142.57,142.55,5.24465714]
[1728641226832,3.5095,142.57,142.54,3.5099]
[1728641227038,11.0695,142.56,142.55,5.24417427]
[1728641227237,11.0695,142.56,142.52,7.56]
[1728641227438,11.0695,142.56,142.53,11.22777895]
[1728641227739,11.0695,142.56,142.54,5.24627484]
[1728641227939,11.0695,142.56,142.55,5.24627484]
[1728641228130,3.5098,142.55,142.52,7.56]
[1728641228333,7.56,142.57,142.53,18.7889331]
[1728641228541,7.56,142.56,142.54,11.2289331]
[1728641228835,7.56,142.58,142.55,5.24687812]
[1728641229039,7.56,142.58,142.54,7.56]
[1728641229040,7.56,142.58,142.54,11.0698]
[1728641229240,3.5094,142.57,142.55,5.24671379]
[1728641229443,3.5094,142.57,142.56,5.24554931]
[1728641230534,3.5094,142.57,142.54,11.0699]
[1728641230736,3.5094,142.57,142.55,11.22530087]
[1728641230937,3.5094,142.57,142.56,5.24514549]
[1728641231141,13.44674231,142.6,142.56,5.24514549]
[1728641231342,1.362,142.6,142.55,7.56]
[1728641231537,8.922,142.6,142.56,5.24513375]
[1728641231738,8.922,142.6,142.55,7.56]
[1728641231939,8.922,142.6,142.56,5.24528321]
[1728641232142,8.922,142.6,142.55,7.56]
[1728641232337,3.5089,142.59,142.56,8.75441753]
[1728641232535,3.5089,142.59,142.56,3.5094]
[1728641233336,3.5091,142.58,142.55,11.0697]
[1728641233536,3.5091,142.58,142.56,5.24373643]
[1728641233743,3.5091,142.58,142.55,11.0697]
[1728641233944,3.5091,142.58,142.56,5.24377815]
[1728641234242,3.5091,142.58,142.55,11.0697]
[1728641234547,3.5093,142.57,142.56,5.24374687]
[1728641235445,9.71,142.58,142.56,5.24374687]
[1728641235744,13.2191,142.58,142.55,3.5098]
[1728641235940,13.2191,142.58,142.56,5.24288116]
[1728641236137,13.2191,142.58,142.55,3.5098]
[1728641236345,13.2191,142.58,142.56,5.24294998]
[1728641236538,13.2191,142.58,142.55,3.5098]
[1728641236738,13.2191,142.58,142.56,5.24261504]
[1728641236945,13.2191,142.58,142.55,3.5098]
[1728641237144,13.2191,142.58,142.56,5.24257346]
[1728641237335,13.2191,142.58,142.56,3.5095]
[1728641238045,13.2191,142.58,142.53,15.49]
[1728641238248,13.2191,142.58,142.56,3.5095]
[1728641239440,13.2191,142.58,142.57,5.24051044]
[1728641240846,13.2191,142.58,142.57,11.21312614]
[1728641241250,13.2191,142.58,142.57,5.24051044]
[1728641241542,3.5091,142.58,142.57,5.24051044]
[1728641248545,13.2191,142.58,142.57,5.24051044]
[1728641248750,9.71,142.58,142.51,1.3804]
[1728641249056,9.71,142.56,142.52,5.2345925]
[1728641249252,13.2197,142.56,142.53,14.71833845]
[1728641249447,13.2197,142.56,142.54,5.2345925]
[1728641249653,13.2197,142.56,142.53,3.5102]
[1728641249952,13.2194,142.57,142.54,8.74966481]
[1728641250152,13.2194,142.57,142.54,3.51]
[1728641250354,13.2194,142.57,142.55,5.23887886]
[1728641250552,1.362,142.6,142.53,9.71]
[1728641250747,9.71,142.58,142.55,3.5096]
[1728641251056,9.71,142.58,142.56,5.23792332]
[1728641251255,3.5093,142.57,142.54,3.5099]
[1728641251555,1.362,142.6,142.55,5.23855763]
[1728641251759,9.71,142.56,142.51,9.71]
[1728641252057,9.71,142.57,142.52,20.92325551]
[1728641252354,9.71,142.57,142.53,11.21383232]
[1728641252555,9.71,142.57,142.54,5.23950241]
[1728641252754,13.2194,142.57,142.53,3.5101]
[1728641252947,13.2194,142.57,142.54,5.24024484]
[1728641253147,13.2194,142.57,142.53,9.71]
[1728641253351,13.2194,142.57,142.54,14.72284408]
[1728641253555,13.2194,142.57,142.55,5.23939547]
[1728641253855,13.2194,142.57,142.54,3.51]
[1728641254058,13.2194,142.57,142.55,5.23917237]
[1728641254253,13.2194,142.57,142.53,13.2202]
[1728641254455,3.5096,142.56,142.54,11.2126999]
[1728641254760,3.5096,142.56,142.55,5.23923564]
[1728641254956,9.71,142.56,142.51,3.5106]
[1728641255256,3.5098,142.55,142.52,11.2146329]
[1728641255456,3.5098,142.55,142.53,11.2146329]
[1728641255658,3.5098,142.55,142.54,5.24015554]
[1728641255845,3.5098,142.55,142.54,5.24030753]
[1728641257753,3.5101,142.54,142.51,3.5108]
[1728641257954,3.5101,142.54,142.52,11.21695533]
[1728641258149,3.5101,142.54,142.53,5.24154194]
[1728641258847,3.5101,142.54,142.49,0.12502]
[1728641258848,13.20869324,142.54,142.49,0.12502]
[1728641259056,3.511,142.5,142.49,0.12502]
[1728641259252,3.511,142.5,142.49,6.10295121]
[1728641259455,13.221,142.5,142.49,0.12502]
[1728641259758,13.221,142.5,142.49,6.10322765]
[1728641260463,13.221,142.5,142.49,0.12502]
[1728641260754,9.71,142.5,142.43,5.82502]
[1728641260951,13.2221,142.46,142.44,5.97909455]
[1728641261150,13.2221,142.46,142.45,5.97909455]
[1728641261751,9.71,142.46,142.45,5.97763862]
[1728641261950,9.71,142.46,142.43,0.12502]
[1728641262151,9.71,142.45,142.44,5.97793811]
[1728641262353,3.512,142.46,142.44,5.97793811]
[1728641262552,13.222,142.46,142.43,3.63772]
[1728641262755,9.71,142.45,142.44,5.97449121]
[1728641263064,13.2222,142.45,142.44,5.97449121]
[1728641263356,13.2222,142.45,142.43,0.12502]
[1728641263658,13.2221,142.46,142.44,5.97013694]
[1728641263965,9.71,142.46,142.43,3.63772]
[1728641264156,9.71,142.46,142.44,5.96976355]
[1728641264351,9.71,142.46,142.43,3.63772]
[1728641265362,13.2222,142.46,142.43,0.12502]
[1728641265563,9.71,142.45,142.43,0.12502]
[1728641265756,13.2224,142.45,142.43,0.12502]
[1728641265949,9.71,142.44,142.43,0.12502]
[1728641266153,9.71,142.45,142.43,0.12502]
[1728641266551,3.5125,142.44,142.43,0.12502]
[1728641266855,9.71,142.45,142.43,0.12502]
[1728641267056,13.2224,142.45,142.43,0.12502]
[1728641268557,3.5125,142.44,142.43,0.12502]
[1728641268957,9.71,142.45,142.43,0.12502]
[1728641269169,9.71,142.46,142.43,0.12502]
[1728641269760,9.71,142.45,142.43,0.12502]
[1728641270359,13.2224,142.45,142.43,0.12502]
[1728641271257,3.5117,142.48,142.43,0.12502]
[1728641271458,9.71,142.46,142.43,0.12502]
[1728641271661,1.4456,142.49,142.43,0.12502]
[1728641271963,13.222,142.46,142.43,0.12502]
[1728641273361,13.222,142.46,142.43,3.63762]
[1728641273970,13.222,142.46,142.43,0.12502]
[1728641274165,13.2223,142.45,142.43,0.12502]
[1728641276664,3.5125,142.44,142.43,0.12502]
[1728641277066,13.2225,142.44,142.43,0.12502]
[1728641279777,9.71,142.45,142.43,0.12502]
[1728641279981,13.2223,142.45,142.43,0.12502]
[1728641280875,9.71,142.44,142.43,0.12502]
[1728641281283,13.2225,142.44,142.43,0.12502]
[1728641284177,9.109151,142.46,142.36,4.1275]
[1728641284486,9.71,142.38,142.33,5.66]
[1728641284876,13.224,142.38,142.35,3.5145]
[1728641287480,3.5138,142.39,142.36,3.5144]
[1728641287682,9.71,142.39,142.34,9.71]
[1728641288390,9.71,142.39,142.37,3.63922]
[1728641289586,3.5136,142.4,142.37,3.63922]
[1728641289784,9.71,142.39,142.37,3.63922]
[1728641290483,9.71,142.4,142.37,3.63922]
[1728641290683,1.0,142.43,142.39,9.71]
[1728641290891,3.57819058,142.46,142.4,9.71]
[1728641291080,9.71,142.45,142.4,9.71]
[1728641291381,9.71,142.44,142.41,3.5132]
[1728641291984,13.2225,142.44,142.41,3.5132]
[1728641292581,5.66,142.46,142.39,3.5135]
[1728641292582,13.2229,142.43,142.39,3.5135]
[1728641293389,9.71,142.43,142.39,3.5135]
[1728641293593,13.223,142.42,142.39,3.5135]
[1728641294993,3.5133,142.41,142.38,3.514]
[1728641296193,13.2231,142.42,142.39,3.5137]
[1728641299792,3.5131,142.42,142.39,3.5137]
[1728641309498,3.58842889,142.47,142.41,9.71]
[1728641309804,13.26287785,142.49,142.44,9.71]
[1728641310008,5.5,142.48,142.45,9.71]
[1728641310198,9.0116,142.48,142.45,13.2221]
[1728641310396,5.5,142.48,142.45,9.71]
[1728641311501,3.5118,142.47,142.45,9.71]
[1728641312005,3.5118,142.47,142.44,13.2223]
[1728641312898,9.0116,142.48,142.45,3.5122]
[1728641313595,9.0116,142.48,142.44,9.71]
[1728641314299,9.0116,142.48,142.45,3.5122]
[1728641314505,3.5116,142.48,142.45,3.5122]
[1728641317102,9.83502,142.49,142.45,3.5122]
[1728641317299,3.5118,142.47,142.45,3.5122]
[1728641317907,0.12502,142.49,142.46,9.71]
[1728641318111,0.12502,142.49,142.47,9.71]
[1728641318596,0.12502,142.49,142.48,13.2215]
[1728641322502,3.5104,142.53,142.5,3.5109]
[1728641322702,15.21,142.54,142.5,9.71]
[1728641323104,18.7202,142.54,142.51,3.5107]
[1728641323508,9.83502,142.55,142.5,9.71]
[1728641323705,13.34482,142.55,142.52,3.5105]